fUSD/lending_fUSD_20251030
["ID","MTS","AMOUNT","RATE_DAILY","PERIOD"]
[392703854,1761834810918,-150.0,0.00046,120]
[392703855,1761834810963,-566.19347833,0.00046,120]
[392703856,1761834811008,-1018.34414907,0.00046,120]
[392703857,1761834811050,-417.96042757,0.00046,120]
[392703858,1761834811088,-223.92,0.00046,30]
[392703859,1761834811128,-1000.0,0.0004611,60]
[392703860,1761834811171,-20068.61482772,0.0004613,120]
[392703861,1761834811212,-2872.01872099,0.000462,120]
[392703862,1761834811269,-500.0,0.00046384,60]
[392703863,1761834811308,-5078.14289768,0.0004649,120]
[392703864,1761834811350,-150.0,0.000465,120]
[392703865,1761834811399,-151.0,0.000465,120]
[392703866,1761834811438,-1374.0390599,0.000466,120]
[392703867,1761834811480,-2000.0,0.00046658,60]
[392703868,1761834811521,-1357.60739844,0.000468,120]
[392703869,1761834811566,-53723.696792,0.000468,120]
[392703870,1761834811607,-1257.30811141,0.000469,120]
[392703871,1761834811650,-445.0,0.00046986,120]
[392703872,1761834811707,-609.12655214,0.00047,30]
[392703873,1761834811758,-667443.79487028,0.00047,120]
[392703874,1761834814805,-150.0,0.0002653,30]
[392703875,1761834814892,-151.0,0.0003413,31]
[392703876,1761834816054,-332556.20512972,0.00047,120]
[392703877,1761834816098,-1000000.0,0.00047,120]
[392703878,1761834816145,-1000000.0,0.00047,120]
[392703879,1761834816193,-1000000.0,0.00047,120]
[392703880,1761834816242,-10000.0,0.00047,120]
[392703881,1761834816284,-222.0,0.00047,120]
[392703882,1761834816325,-150.0,0.00047,120]
[392703883,1761834816371,-4783.0,0.00047,120]
[392703884,1761834816416,-904.78,0.0004704,120]
[392703885,1761834816459,-1000.0,0.00047206,60]
[392703886,1761834816497,-634.22786465,0.0004725,60]
[392703887,1761834816536,-500.0,0.0004748,60]
[392703888,1761834816577,-651.42445897,0.000475,120]
[392703889,1761834816622,-150.0,0.000475,120]
[392703890,1761834816661,-158.0,0.000477,120]
[392703891,1761834816703,-2000.0,0.00047754,60]
[392703892,1761834816745,-151.0,0.000478,120]
[392703893,1761834816786,-1080.13246036,0.0004788,100]
[392703894,1761834816822,-371.50722083,0.00048,120]
[392703895,1761834816858,-1000.0,0.00048,120]
[392703896,1761834816898,-210.66,0.00048,120]
[392703897,1761834816935,-10000.0,0.00048,120]
[392703898,1761834816973,-252.5377075,0.00048,120]
[392703899,1761834817011,-221787.3890729,0.00048,120]
[392703900,1761834817045,-5062.58768509,0.00048,120]
[392703901,1761834817085,-150.0,0.00048,120]
[392703902,1761834817123,-2212.99840883,0.00048,120]
[392703903,1761834817163,-177.33555512,0.00048,120]
[392703904,1761834817203,-1716.23552473,0.00048,120]
[392703905,1761834817247,-2104.35506961,0.00048,120]
[392703906,1761834817286,-224.00148785,0.00048,120]
[392703907,1761834817324,-1018.34414907,0.00048,120]
[392703908,1761834817366,-417.96042757,0.00048,120]
[392703909,1761834817405,-1000.0,0.00048302,60]
[392703910,1761834817444,-5233.23,0.00048345,120]
[392703911,1761834817482,-230.37966679,0.000485,120]
[392703912,1761834817525,-383.03175522,0.00048576,60]
[392703913,1761834817566,-253.05435644,0.0004868,120]
[392703914,1761834817607,-208.8670844,0.00048696,120]
[392703915,1761834817651,-658.082,0.00048749,120]
[392703916,1761834817692,-658.082,0.00048749,120]
[392703917,1761834817731,-658.082,0.00048749,120]
[392703918,1761834817769,-658.082,0.00048749,120]
[392703919,1761834817808,-658.082,0.00048749,120]
[392703920,1761834817851,-1000.0,0.000488,30]
[392703921,1761834817896,-241.88262238,0.000488,120]
[392703922,1761834817937,-10020.26665485,0.000488,120]
[392703923,1761834817980,-76104.15510388,0.000488,120]
[392703924,1761834818021,-18075.61713643,0.000488,120]
[392703925,1761834818060,-9860.44622607,0.000488,120]
[392703926,1761834818099,-499999.0,0.000488,120]
[392703927,1761834818134,-499999.0,0.000488,120]
[392703928,1761834818172,-272152.97717074,0.000488,120]
[392703929,1761834821860,-151.0,0.0003413,30]
[392703930,1761834821905,-621.26,0.00035,30]
[392703931,1761834822474,-227846.02282926,0.000488,120]
[392703932,1761834822513,-499999.0,0.000488,120]
[392703933,1761834822549,-499999.0,0.000488,120]
[392703934,1761834822584,-499999.0,0.000488,120]
[392703935,1761834822920,-499999.0,0.000488,120]
[392703936,1761834822960,-367039.65188,0.000488,120]
[392703937,1761834823000,-2000.0,0.0004885,60]
[392703938,1761834823035,-200.0,0.00048866,120]
[392703939,1761834823072,-696.99167133,0.0004888,120]
[392703940,1761834823111,-196.38088724,0.000489,120]
[392703941,1761834823153,-1226.10382896,0.000489,120]
[392703942,1761834823193,-2903.34713316,0.000489,120]
[392703943,1761834823231,-445.0,0.00048986,120]
[392703944,1761834823268,-156.31010164,0.00048989,120]
[392703945,1761834823307,-1000.0,0.00048999,120]
[392703946,1761834823346,-196.21619103,0.00049,120]
[392703947,1761834823382,-784.71047616,0.00049,30]
[392703948,1761834823419,-109704.48314832,0.00049,120]
[392703949,1761834823454,-1000.0,0.00049,120]
[392703950,1761834823492,-47220.62212671,0.00049,120]
[392703951,1761834823533,-10000.0,0.00049,120]
[392703952,1761834823572,-503.78329674,0.00049,120]
[392703953,1761834823612,-234637.97279191,0.00049,61]
[392703954,1761834823654,-4783.0,0.00049,120]
[392703955,1761834823691,-176.97216439,0.00049,30]
[392703956,1761834823729,-500.0,0.00049015,30]
[392703957,1761834823766,-500.0,0.00049015,30]
[392703958,1761834823801,-237.73383359,0.00049015,30]
[392703959,1761834823836,-500.0,0.00049015,30]
[392703960,1761834823874,-500.0,0.00049015,30]
[392703961,1761834823912,-500.0,0.00049015,30]
[392703962,1761834823950,-500.0,0.00049015,30]
[392703963,1761834823987,-500.0,0.00049015,30]
[392703964,1761834824023,-500.0,0.00049015,30]
[392703965,1761834824060,-500.0,0.00049015,30]
[392703966,1761834824096,-500.0,0.00049015,30]
[392703967,1761834824133,-500.0,0.00049015,30]
[392703968,1761834824172,-617.53997259,0.00049015,30]
[392703969,1761834824210,-151.0,0.000491,120]
[392703970,1761834824249,-476.34,0.00049257,120]
[392703971,1761834824288,-300.0,0.00049315,30]
[392703972,1761834824330,-300.0,0.00049315,30]
[392703973,1761834824369,-300.0,0.00049315,30]
[392703974,1761834824412,-300.0,0.00049315,30]
[392703975,1761834824448,-300.0,0.00049315,30]
[392703976,1761834824485,-300.0,0.00049315,30]
[392703977,1761834824519,-334.0,0.00049315,30]
[392703978,1761834824554,-300.0,0.00049315,30]
[392703979,1761834824587,-583.97,0.00049315,120]
[392703980,1761834824621,-583.97,0.00049315,120]
[392703981,1761834824657,-583.97,0.00049315,120]
[392703982,1761834824693,-583.97,0.00049315,120]
[392703983,1761834824728,-583.97,0.00049315,120]
[392703984,1761834824767,-583.97,0.00049315,120]
[392703985,1761834824806,-583.97,0.00049315,120]
[392703986,1761834824842,-583.97,0.00049315,120]
[392703987,1761834824882,-583.97,0.00049315,120]
[392703988,1761834824919,-583.97,0.00049315,120]
[392703989,1761834824957,-583.97,0.00049315,120]
[392703990,1761834824997,-583.97,0.00049315,120]
[392703991,1761834825034,-583.97,0.00049315,120]
[392703992,1761834825069,-583.97,0.00049315,120]
[392703993,1761834825106,-583.97,0.00049315,120]
[392703994,1761834825141,-583.97,0.00049315,120]
[392703995,1761834825176,-583.97,0.00049315,120]
[392703996,1761834825212,-583.97,0.00049315,120]
[392703997,1761834825251,-583.97,0.00049315,120]
[392703998,1761834825288,-583.97,0.00049315,120]
[392703999,1761834825324,-583.97,0.00049315,120]
[392704000,1761834825360,-584.07381626,0.00049315,120]
[392704001,1761834825394,-200.0,0.00049315,120]
[392704002,1761834825430,-200.0,0.00049315,120]
[392704003,1761834825467,-200.0,0.00049315,120]
[392704004,1761834825502,-200.0,0.00049315,120]
[392704005,1761834825535,-200.0,0.00049315,120]
[392704006,1761834825569,-200.0,0.00049315,120]
[392704007,1761834825603,-200.0,0.00049315,120]
[392704008,1761834825636,-200.0,0.00049315,120]
[392704009,1761834825670,-200.0,0.00049315,120]
[392704010,1761834825703,-200.0,0.00049315,120]
[392704011,1761834825736,-200.0,0.00049315,120]
[392704012,1761834825769,-200.0,0.00049315,120]
[392704013,1761834825804,-200.0,0.00049315,120]
[392704014,1761834825842,-200.0,0.00049315,120]
[392704015,1761834825881,-200.0,0.00049315,120]
[392704016,1761834825918,-200.0,0.00049315,120]
[392704017,1761834825952,-200.0,0.00049315,120]
[392704018,1761834825989,-200.0,0.00049315,120]
[392704019,1761834826026,-200.0,0.00049315,120]
[392704020,1761834826061,-200.0,0.00049315,120]
[392704021,1761834826096,-200.0,0.00049315,120]
[392704022,1761834826132,-200.0,0.00049315,120]
[392704023,1761834826168,-210.41851997,0.00049315,120]
[392704024,1761834826203,-200.0,0.00049315,30]
[392704025,1761834826237,-200.0,0.00049315,30]
[392704026,1761834826274,-153.49590785,0.00049315,30]
[392704027,1761834826308,-290.85971908,0.00049315,30]
[392704028,1761834826834,1315.146648,0.00044,120]
[392704029,1761834826888,621.26,0.00042,30]
[392704030,1761834826935,621.26,0.00049,30]
[392704031,1761834827111,512.58486016,0.0002653,30]
[392704032,1761834828813,999999.0,0.00045,120]
[392704033,1761834829216,955726.08819565,0.00045,120]
[392704034,1761834851722,-150.0,0.0002653,30]
[392704035,1761834851760,-170.40518442,0.0002653,30]
[392704036,1761834852557,-44273.91180435,0.00045,120]
[392704037,1761834852596,-1000000.0,0.00045,120]
[392704038,1761834852635,-1000000.0,0.00045,120]
[392704039,1761834852677,-1000000.0,0.00046,120]
[392704040,1761834852716,-1000000.0,0.00046,120]
[392704041,1761834852753,-955405.68301123,0.00046,120]
[392704042,1761834857103,-44594.31698877,0.00046,120]
[392704043,1761834857156,-1000000.0,0.00046,120]
[392704044,1761834857213,-1000000.0,0.00047,120]
[392704045,1761834857265,-1000000.0,0.00047,120]
[392704046,1761834857312,-1000000.0,0.00047,120]
[392704047,1761834857360,-506.790232,0.000493,30]
[392704048,1761834857408,-757.0,0.00049317,120]
[392704049,1761834857456,-1000.0,0.00049398,60]
[392704050,1761834857509,-2000.0,0.0004944,62]
[392704051,1761834857566,-411.8547291,0.000495,120]
[392704052,1761834857614,-944.02591483,0.000495,120]
[392704053,1761834857663,-309.5979413,0.000495,120]
[392704054,1761834857711,-158.0,0.000495,120]
[392704055,1761834857756,-2000.0,0.0004978,55]
[392704056,1761834857806,-160.3039026,0.000498,30]
[392704057,1761834857852,-100000.0,0.000498,120]
[392704058,1761834857904,-146863.2801588,0.00049838,30]
[392704059,1761834857951,-2000.0,0.0004986,55]
[392704060,1761834857997,-200.0,0.000499,120]
[392704061,1761834858043,-1416.0,0.000499,60]
[392704062,1761834858090,-650.39,0.000499,120]
[392704063,1761834858139,-475.6,0.0004993,120]
[392704064,1761834858200,-2000.0,0.00049946,60]
[392704065,1761834858255,-1000.0,0.00049999,120]
[392704066,1761834858313,-50000.0,0.00049999,50]
[392704067,1761834858365,-317.63197536,0.0005,120]
[392704068,1761834858418,-500.0,0.0005,120]
[392704069,1761834858474,-312.25216403,0.0005,120]
[392704070,1761834858529,-980.7891233,0.0005,120]
[392704071,1761834858581,-1346.15509248,0.0005,120]
[392704072,1761834858633,-1404.56624058,0.0005,120]
[392704073,1761834858689,-1079.75952052,0.0005,120]
[392704074,1761834858740,-224.97966388,0.0005,120]
[392704075,1761834858792,-165.03401123,0.0005,120]
[392704076,1761834858845,-500.0,0.0005,30]
[392704077,1761834858892,-2134.60656399,0.0005,120]
[392704078,1761834858943,-817.74726344,0.0005,120]
[392704079,1761834858992,-291.56465743,0.0005,120]
[392704080,1761834859040,-30000.0,0.0005,120]
[392704081,1761834859338,-1000.0,0.0005,120]
[392704082,1761834859403,-488.0,0.0005,30]
[392704083,1761834859450,-6625.8717705,0.0005,120]
[392704084,1761834859496,-6780.2715047,0.0005,120]
[392704085,1761834859542,-587583.61058116,0.0005,30]
[392704086,1761834864787,-1000.0,0.00048999,120]
[392704087,1761834864828,-1917446.51222605,0.0005,30]
[392704088,1761834864866,-476.00491227,0.0005,120]
[392704089,1761834864906,-750.0,0.0005,60]
[392704090,1761834864943,-200.0,0.0005,120]
[392704091,1761834864981,-225.27566745,0.0005,120]
[392704092,1761834865019,-280.0,0.0005,120]
[392704093,1761834865060,-2992.46648204,0.0005,120]
[392704094,1761834865094,-2000.0,0.0005,60]
[392704095,1761834865128,-246.316767,0.0005,120]
[392704096,1761834865161,-5000.0,0.0005,120]
[392704097,1761834865195,-540.1186137,0.0005,30]
[392704098,1761834865230,-300.0,0.0005,120]
[392704099,1761834865264,-178.01105335,0.0005,120]
[392704100,1761834865298,-7523.90532627,0.0005,120]
[392704101,1761834865337,-4993.6,0.0005,120]
[392704102,1761834865377,-3840.50404956,0.0005,120]
[392704103,1761834865415,-17748.0690949,0.0005,120]
[392704104,1761834865451,-150.0,0.0005,120]
[392704105,1761834865487,-279.0,0.0005,120]
[392704106,1761834865522,-456.26451813,0.0005,120]
[392704107,1761834865557,-6673.1259594,0.0005,120]
[392704108,1761834865590,-150.0,0.0005,120]
[392704109,1761834865624,-150.0,0.0005,120]
[392704110,1761834865657,-2595.6,0.0005,120]
[392704111,1761834865689,-200.90504221,0.0005,120]
[392704112,1761834865724,-150.0,0.0005,120]
[392704113,1761834865757,-150.0,0.0005,120]
[392704114,1761834865792,-40000.0,0.0005,120]
[392704115,1761834865830,-1647.63,0.0005,30]
[392704116,1761834865866,-4999.999999,0.0005,120]
[392704117,1761834865905,-223.92,0.0005,120]
[392704118,1761834865942,-23192.38228452,0.0005,120]
[392704119,1761834865978,-1949.73,0.0005,30]
[392704120,1761834866019,-10995.06567286,0.0005026,120]
[392704121,1761834866069,-151.0,0.000503,120]
[392704122,1761834866107,-5233.23,0.00050345,120]
[392704123,1761834866141,-44000.00000001,0.000504,120]
[392704124,1761834866177,-1000.0,0.00050494,60]
[392704125,1761834866592,-1999.99999989,0.000505,120]
[392704126,1761834866631,-553.29,0.000505,120]
[392704127,1761834866669,-59427.72803774,0.0005052,120]
[392704128,1761834866708,-3193.78240868,0.00050526,120]
[392704129,1761834866746,-10285.70409593,0.0005053,120]
[392704130,1761834866783,-1255.0125448,0.00050533,120]
[392704131,1761834866819,-545.60956849,0.0005054,120]
[392704132,1761834866860,-14573.00745431,0.0005054,120]
[392704133,1761834866897,-248.19955588,0.00050544,120]
[392704134,1761834866934,-1255.0125448,0.00050566,120]
[392704135,1761834866971,-3193.78240868,0.00050567,120]
[392704136,1761834867012,-1463.97900039,0.00050589,120]
[392704137,1761834867050,-1613.45185808,0.00050618,120]
[392704138,1761834867088,-306.46120874,0.00050621,120]
[392704139,1761834867125,-213.79249303,0.00050624,120]
[392704140,1761834867167,-248.19955588,0.00050628,120]
[392704141,1761834867211,-702.63241443,0.00050639,120]
[392704142,1761834867249,-304.30399784,0.00050647,120]
[392704143,1761834867287,-59427.72803774,0.00050651,120]
[392704144,1761834867327,-304.30399784,0.00050661,120]
[392704145,1761834867364,-10285.70409593,0.00050664,120]
[392704146,1761834867401,-213.79249303,0.00050665,120]
[392704147,1761834867438,-213.79249303,0.00050688,120]
[392704148,1761834867475,-287.35180152,0.0005069,120]
[392704149,1761834867510,-10285.70409593,0.00050697,120]
[392704150,1761834867546,-1637.86302735,0.00050706,120]
[392704151,1761834867587,-1637.86302735,0.00050706,120]
[392704152,1761834867620,-248.19955588,0.00050713,120]
[392704153,1761834867656,-3193.78240868,0.00050714,120]
[392704154,1761834867691,-306.46120874,0.00050723,120]
[392704155,1761834867725,-702.63241443,0.00050736,120]
[392704156,1761834867759,-1613.45185808,0.0005075,120]
[392704157,1761834867794,-287.35180152,0.00050751,120]
[392704158,1761834867830,-304.30399784,0.00050775,120]
[392704159,1761834867863,-2338.61492551,0.00050789,90]
[392704160,1761834867898,-702.63241443,0.00050795,120]
[392704161,1761834867935,-1255.0125448,0.00050809,120]
[392704162,1761834867971,-14573.00745431,0.00050816,120]
[392704163,1761834868009,-545.60956849,0.00050832,120]
[392704164,1761834868044,-1463.97900039,0.00050834,120]
[392704165,1761834868080,-1463.97900039,0.00050869,120]
[392704166,1761834868118,-287.35180152,0.00050877,120]
[392704167,1761834868157,-1613.45185808,0.00050878,120]
[392704168,1761834868195,-306.46120874,0.00050881,120]
[392704169,1761834868234,-14573.00745431,0.00050883,120]
[392704170,1761834868272,-1637.86302735,0.0005089,120]
[392704171,1761834868309,-59427.72803774,0.00050894,120]
[392704172,1761834868347,-545.60956849,0.00050899,120]
[392704173,1761834868385,-1000.0,0.00050999,120]
[392704174,1761834868423,-2019.11,0.00051,120]
[392704175,1761834868459,-1000.0,0.00051,120]
[392704176,1761834868493,-5000.0,0.00051,120]
[392704177,1761834868529,-4783.0,0.00051,120]
[392704178,1761834868563,-2036.68829815,0.00051,120]
[392704179,1761834868599,-835.92085514,0.00051,120]
[392704180,1761834868637,-2000.0,0.00051042,60]
[392704181,1761834868677,-60821.0,0.0005122,120]
[392704182,1761834868716,-158.0,0.000513,120]
[392704183,1761834868753,-2740.114533,0.000515,120]
[392704184,1761834868793,-711044.21574325,0.00051507,120]
[392704185,1761834868832,-979.99106515,0.0005159,60]
[392704186,1761834868871,-151.0,0.000516,120]
[392704187,1761834868921,-500.0,0.00051755,30]
[392704188,1761834868961,-500.0,0.00051755,30]
[392704189,1761834869000,-500.0,0.00051755,30]
[392704190,1761834869044,-500.0,0.00051755,30]
[392704191,1761834869087,-500.0,0.00051755,30]
[392704192,1761834869127,-500.0,0.00051755,30]
[392704193,1761834869167,-208.62212778,0.00051755,30]
[392704194,1761834869207,-500.0,0.00051755,30]
[392704195,1761834869246,-500.0,0.00051755,30]
[392704196,1761834869285,-500.0,0.00051755,30]
[392704197,1761834869323,-406.18831676,0.00051755,30]
[392704198,1761834869359,-255.49518054,0.00051755,30]
[392704199,1761834869401,-746.63174061,0.00051977,30]
[392704200,1761834869442,-1000.0,0.00051999,120]
[392704201,1761834869481,-750.0,0.00052,60]
[392704202,1761834869525,-296.70257734,0.00052,120]
[392704203,1761834869566,-654.81584038,0.00052,100]
[392704204,1761834869603,-150.0,0.00052,30]
[392704205,1761834869641,-500.00000001,0.00052,120]
[392704206,1761834869679,-2079.98751069,0.00052,120]
[392704207,1761834869714,-1000.0,0.00052,120]
[392704208,1761834869749,-3000.00000099,0.00052,120]
[392704209,1761834869791,-5000.0,0.00052,120]
[392704210,1761834869831,-4765.0,0.00052,120]
[392704211,1761834869870,-151.0,0.00052,120]
[392704212,1761834869908,-290437.22,0.00052055,120]
[392704213,1761834869946,-3717.75484562,0.00052055,30]
[392704214,1761834870495,150.0,0.00051755,30]
[392704215,1761834870543,1000.0,0.00049469,30]
[392704216,1761834870590,172.185401,0.0003,31]
[392704217,1761834870631,150.0,0.00051755,30]
[392704218,1761834870676,205.63640443,0.00051755,30]
[392704219,1761834870732,313.64757505,0.0005026,120]
[392704220,1761834870774,1324.06237044,0.0005026,120]
[392704221,1761834870817,300.0,0.00051755,30]
[392704222,1761834870862,300.0,0.00051755,30]
[392704223,1761834870907,300.0,0.00051755,30]
[392704224,1761834870976,300.0,0.00051755,30]
[392704225,1761834871048,300.0,0.00051755,30]
[392704226,1761834871092,300.0,0.00051755,30]
[392704227,1761834871162,300.0,0.00051755,30]
[392704228,1761834871206,204.49581406,0.00051755,30]
[392704229,1761834871298,500.0,0.00051755,30]
[392704230,1761834871341,500.0,0.00051755,30]
[392704231,1761834871389,500.0,0.00051755,30]
[392704232,1761834871432,500.0,0.00051755,30]
[392704233,1761834871483,500.0,0.00051755,30]
[392704234,1761834871532,500.0,0.00051755,30]
[392704235,1761834871576,500.0,0.00051755,30]
[392704236,1761834871624,500.0,0.00051755,30]
[392704237,1761834871683,500.0,0.00051755,30]
[392704238,1761834871747,500.0,0.00051755,30]
[392704239,1761834871868,500.0,0.00051755,30]
[392704240,1761834871914,11676.76483202,0.0005026,120]
[392704241,1761834872209,500.0,0.00051755,30]
[392704242,1761834872396,500.0,0.00051755,30]
[392704243,1761834872625,500.0,0.00051755,30]
[392704244,1761834872809,500.0,0.00051755,30]
[392704245,1761834872957,2650.33944066,0.00051977,30]
[392704246,1761834873008,500.0,0.00051755,30]
[392704247,1761834873257,500.0,0.00051755,30]
[392704248,1761834873530,500.0,0.00051755,30]
[392704249,1761834873740,500.0,0.00051755,30]
[392704250,1761834873993,267.62569553,0.00051755,30]
[392704251,1761834889218,-611.754,0.000147,2]
[392704252,1761834889247,-199.0,0.00014865,2]
[392704253,1761834889273,-1200.0,0.00014899,2]
[392704254,1761834889299,-300.0,0.00014899,2]
[392704255,1761834889328,-5162.09363357,0.000149,2]
[392704256,1761834889353,-200.6580227,0.000149,2]
[392704257,1761834889379,-1910.335625,0.000149,2]
[392704258,1761834889404,-341.15426093,0.000149,2]
[392704259,1761834889431,-199.0,0.00014956,2]
[392704260,1761834889457,-500.0,0.00014979,2]
[392704261,1761834889482,-500.0,0.00014979,2]
[392704262,1761834889506,-288.25603492,0.00014979,2]
[392704263,1761834889529,-477.13749083,0.00014998,2]
[392704264,1761834889553,-818.0,0.00014998,2]
[392704265,1761834889581,-1030.442,0.00014998,2]
[392704266,1761834889605,-150.0,0.00014998,2]
[392704267,1761834889629,-500.0,0.00014999,2]
[392704268,1761834889653,-500.0,0.00014999,2]
[392704269,1761834889678,-500.0,0.00014999,2]
[392704270,1761834889701,-500.0,0.00014999,2]
[392704271,1761834889725,-500.0,0.00014999,2]
[392704272,1761834889750,-500.0,0.00014999,2]
[392704273,1761834889774,-185.83,0.00014999,2]
[392704274,1761834889799,-166.22482457,0.00014999,2]
[392704275,1761834889823,-189.24172165,0.00014999,2]
[392704276,1761834889848,-279.82740126,0.00014999,2]
[392704277,1761834889873,-500.0,0.00014999,2]
[392704278,1761834889898,-2458.0,0.00015,2]
[392704279,1761834889924,-1257276.88121065,0.00015,2]
[392704280,1761834889948,-150.0,0.00015,2]
[392704281,1761834889971,-593.57895976,0.00015,2]
[392704282,1761834889996,-1000.0,0.00015,2]
[392704283,1761834890023,-539.97010201,0.00015,2]
[392704284,1761834890049,-2288.6917706,0.00015,2]
[392704285,1761834890074,-63017.4623631,0.00015,2]
[392704286,1761834890097,-574.71,0.00015,2]
[392704287,1761834890119,-160.0,0.00015,2]
[392704288,1761834890141,-92224.46288763,0.00015,2]
[392704289,1761834890165,-3561507.28769082,0.00015,2]
[392704290,1761834895745,-1000000.0,0.00045,120]
[392704291,1761834895785,-1000000.0,0.00045,120]
[392704292,1761834895823,-1000000.0,0.00045,120]
[392704293,1761834895861,-1000000.0,0.00045,120]
[392704294,1761834895900,-1000000.0,0.00046,120]
[392704295,1761834899264,-1000000.0,0.00047,120]
[392704296,1761834899305,-1000000.0,0.00048,120]
[392704297,1761834899343,-500.0,0.00048356,60]
[392704298,1761834899384,-500.0,0.00048356,60]
[392704299,1761834899425,-500.0,0.00048356,60]
[392704300,1761834899462,-500.0,0.00049452,60]
[392704301,1761834899499,-500.0,0.00049452,60]
[392704302,1761834899536,-500.0,0.00050548,60]
[392704303,1761834899570,-500.0,0.00050548,60]
[392704304,1761834899605,-1000.0,0.00050999,120]
[392704305,1761834899640,-500.0,0.00051644,60]
[392704306,1761834899675,-500.0,0.00051644,60]
[392704307,1761834899717,-1000.0,0.00051999,120]
[392704308,1761834899749,-151.0,0.00052055,120]
[392704309,1761834899786,-291.28110319,0.000525,120]
[392704310,1761834899824,-500.0,0.0005274,60]
[392704311,1761834899866,-151.0,0.000529,120]
[392704312,1761834899910,-1000.0,0.00052999,120]
[392704313,1761834899954,-163253.6030533,0.00053,120]
[392704314,1761834899993,-1000.0,0.00053,120]
[392704315,1761834900037,-5000.0,0.00053,120]
[392704316,1761834900087,-4783.0,0.00053,120]
[392704317,1761834900134,-5233.23,0.00053034,120]
[392704318,1761834900176,-158.0,0.000532,120]
[392704319,1761834900219,-999.0,0.00053424,120]
[392704320,1761834900258,-80000.0,0.0005373,120]
[392704321,1761834900295,-50796.37413452,0.000538,120]
[392704322,1761834900335,-620.0,0.000538,120]
[392704323,1761834900374,-1000.0,0.000538,120]
[392704324,1761834900413,-500.0,0.00053836,60]
[392704325,1761834900454,-2678063.51170899,0.0005392,120]
[392704326,1761834902876,-300.0,0.00014999,2]
[392704327,1761834902903,-1200.0,0.00014999,2]
[392704328,1761834902928,-1965.0,0.00015,2]
[392704329,1761834902957,-1372579.81504139,0.00015,2]
[392704330,1761834902982,-2027.6262559,0.00015,2]
[392704331,1761834903009,-7893.39635318,0.00015,2]
[392704332,1761834903043,-1614034.16234953,0.00015,2]
[392704333,1761834904801,-2303936.59596989,0.0005392,120]
[392704334,1761834904844,-80078.0,0.0005393,120]
[392704335,1761834904887,-1000.0,0.00054,120]
[392704336,1761834904931,-5000.0,0.00054,120]
[392704337,1761834904975,-300.0,0.00054,120]
[392704338,1761834905017,-977.57753351,0.00054,120]
[392704339,1761834905060,-2545.86037269,0.00054,120]
[392704340,1761834905101,-1044.90106892,0.00054,120]
[392704341,1761834905147,-151.0,0.000542,120]
[392704342,1761834905188,-1333.0,0.00054375,120]
[392704343,1761834905236,-500.0,0.00054794,120]
[392704344,1761834905281,-500.0,0.00054794,120]
[392704345,1761834905326,-387.07727923,0.00054794,120]
[392704346,1761834905371,-1869.77,0.00054794,120]
[392704347,1761834905414,-1869.77,0.00054794,120]
[392704348,1761834905460,-1869.77,0.00054794,120]
[392704349,1761834905508,-1869.77,0.00054794,120]
[392704350,1761834905552,-1869.77,0.00054794,120]
[392704351,1761834905595,-1869.77,0.00054794,120]
[392704352,1761834905639,-1869.77,0.00054794,120]
[392704353,1761834905681,-1869.77,0.00054794,120]